bitfinex-derivatives/quotes_SOLF0:USTF0_20250211
["timestamp","ask_amount","ask_price","bid_price","bid_amount"]
[1739309862248,5.0512,197.99,197.97,0.03656162]
[1739309863050,0.03325266,198.0,197.99,5.051]
[1739309863249,0.03325266,198.0,197.97,0.03656162]
[1739309863650,5.08395266,198.0,197.97,5.08786162]
[1739309864146,0.03325266,198.0,197.97,0.03656162]
[1739309866349,5.051,197.99,197.97,0.03656162]
[1739309867046,0.03325266,198.0,197.99,5.051]
[1739309867956,0.03325266,198.0,197.98,5.0511]
[1739309869052,0.03325266,198.0,197.99,5.051]
[1739309869249,5.266e-05,198.0,197.99,5.051]
[1739309870650,5.266e-05,198.0,197.97,13.78385048]
[1739309870651,1.5514,198.15,197.97,13.78385048]
[1739309870849,5.0474,198.13,198.04,13.74728886]
[1739309871656,0.03452112,198.1,198.08,5.0485]
[1739309871855,0.03452112,198.1,198.07,0.03395078]
[1739309872252,0.03452112,198.1,198.08,5.0485]
[1739309873254,0.03452112,198.1,198.07,0.03395078]
[1739309873460,5.0486,198.09,198.07,0.03395078]
[1739309874962,0.03452112,198.1,198.07,0.03395078]
[1739309876066,0.03452112,198.1,198.09,5.0484]
[1739309878469,0.03452112,198.1,198.08,5.0486]
[1739309878860,0.03452112,198.1,198.07,0.03395078]
[1739309879065,0.03452112,198.1,198.07,5.08265078]
[1739309879668,5.08282112,198.1,198.07,0.03395078]
[1739309879861,0.03452112,198.1,198.07,0.03395078]
[1739309880371,0.03452112,198.1,198.08,5.0484]
[1739309880663,0.03452112,198.1,198.07,0.03395078]
[1739309880869,0.03452112,198.1,198.08,5.0487]
[1739309881370,0.03452112,198.1,198.07,0.03395078]
[1739309882369,5.08272112,198.1,198.07,0.03395078]
[1739309882670,0.03452112,198.1,198.07,0.03395078]
[1739309883271,0.03452112,198.1,198.09,5.0484]
[1739309884476,4.6313,198.23,198.09,13.74728886]
[1739309884674,4.6313,198.23,198.12,13.74728886]
[1739309885372,9.6762,198.23,198.12,13.74728886]
[1739309885674,0.03275063,198.19,198.16,0.03773602]
[1739309886272,0.03275063,198.19,198.18,5.0461]
[1739309888275,13.74728886,198.31,198.23,5.0447]
[1739309888569,13.74728886,198.31,198.18,13.74728886]
[1739309888775,5.0442,198.26,198.21,5.0453]
[1739309888975,13.74728886,198.31,198.21,5.0453]
[1739309889275,0.03540229,198.28,198.24,0.0357403]
[1739309889569,13.78269115,198.28,198.24,0.0357403]
[1739309889971,1.4675,198.27,198.12,13.74728886]
[1739309890171,13.74728886,198.25,198.12,13.74728886]
[1739309890576,5.0452,198.22,198.12,13.74728886]
[1739309890777,13.74728886,198.25,198.12,13.74728886]
[1739309890978,0.03506169,198.2,198.17,0.03389335]
[1739309891176,13.74728886,198.22,198.17,0.03389335]
[1739309891372,0.0318905,198.21,198.17,0.03389335]
[1739309891676,5.0459,198.19,198.17,0.03389335]
[1739309892674,5.0457,198.2,198.17,0.03389335]
[1739309893378,0.0318905,198.21,198.18,13.74728886]
[1739309894177,0.0318905,198.21,198.2,5.0456]
[1739309894484,9.05e-05,198.21,198.2,5.0456]
[1739309897185,5.0426,198.32,198.28,5.0434]
[1739309897380,13.74728886,198.34,198.2,13.74728886]
[1739309897580,5.0438,198.28,198.22,5.045]
[1739309897787,5.0438,198.28,198.2,13.74728886]
[1739309898186,5.0442,198.26,198.22,5.0449]
[1739309898386,5.08133768,198.26,198.22,5.07709633]
[1739309898583,0.03713768,198.26,198.22,5.07709633]
[1739309899085,5.08123768,198.26,198.22,5.07709633]
[1739309899282,5.08123768,198.26,198.22,0.03219633]
[1739309899489,5.08123768,198.26,198.23,5.0448]
[1739309901080,0.03713768,198.26,198.23,5.0448]
[1739309901280,0.03713768,198.26,198.22,0.03219633]
[1739309901485,0.03713768,198.26,198.24,5.0445]
[1739309902183,0.03713768,198.26,198.25,5.0443]
[1739309902386,3.768e-05,198.26,198.25,5.0443]
[1739309903085,1.6005,198.35,198.32,5.0424]
[1739309903290,3.1924,198.36,198.28,13.74728886]
[1739309903681,1.6025,198.39,198.32,13.74728886]
[1739309904286,0.03607728,198.37,198.34,0.03455757]
[1739309905091,0.03607728,198.37,198.36,5.0415]
[1739309905588,0.03607728,198.37,198.34,0.03455757]
[1739309905779,0.03607728,198.37,198.34,5.07635757]
[1739309906182,0.03607728,198.37,198.34,0.03455757]
[1739309907083,0.03607728,198.37,198.29,92.75626323]
[1739309907284,13.74728886,198.34,198.23,13.74728886]
[1739309907481,1.5354,198.33,198.23,13.74728886]
[1739309907683,5.0429,198.31,198.25,5.0442]
[1739309907880,1.5354,198.33,198.22,6.87816971]
[1739309908289,0.03554547,198.29,198.26,0.03539122]
[1739309908596,13.74728886,198.42,198.26,13.78268008]
[1739309908794,1.516,198.41,198.31,5.0428]
[1739309908993,3.0319,198.41,198.31,5.0428]
[1739309909492,3.0319,198.41,198.3,13.74728886]
[1739309909792,0.03432341,198.38,198.34,0.035683]
[1739309909993,3.0319,198.41,198.29,21.95565719]
[1739309910187,0.03504506,198.38,198.34,0.03828365]
[1739309912892,0.03504506,198.38,198.26,21.95565719]
[1739309913084,5.0413,198.37,198.26,21.95565719]
[1739309913391,1.5528,198.4,198.31,5.0426]
[1739309913585,5.0416,198.36,198.31,5.0426]
[1739309914086,0.03358238,198.35,198.32,0.03467787]
[1739309914488,0.03358238,198.35,198.24,92.77509402]
[1739309915084,21.95565719,198.33,198.24,92.77509402]
[1739309915294,21.95565719,198.3,198.21,27.43123227]
[1739309915593,0.03285322,198.27,198.24,0.03640562]
[1739309916191,0.03285322,198.27,198.21,27.43123227]
[1739309916386,0.03285322,198.27,198.2,5.0456]
[1739309917089,21.95565719,198.23,198.16,46.2694392]
[1739309917493,21.95565719,198.23,198.22,0.03287534]
[1739309917689,0.03874536,198.21,198.16,46.2694392]
[1739309918491,5.0459,198.19,198.16,46.2694392]
[1739309918691,0.03874536,198.21,198.06,30.3450269]
[1739309918993,21.95565719,198.23,198.16,0.03369893]
[1739309919196,5.0458,198.2,198.16,0.03369893]
[1739309920296,0.03417946,198.21,198.16,0.03369893]
[1739309920594,5.0462,198.18,198.16,0.03369893]
[1739309920791,0.03417946,198.21,198.16,0.03369893]
[1739309921196,5.0462,198.18,198.16,0.03369893]
[1739309921791,9.55973375,198.38,198.2,43.91131438]
[1739309922096,9.55973375,198.38,198.28,21.95565719]
[1739309922396,3.1097,198.45,198.29,5.0433]
[1739309922591,0.92677009,198.44,198.28,21.95565719]
[1739309922789,5.0411,198.38,198.28,21.95565719]
[1739309922987,5.07299307,198.38,198.34,0.03864187]
[1739309923198,5.0418,198.35,198.34,0.03864187]
[1739309923995,5.0414,198.37,198.34,0.03864187]
[1739309924196,0.03189307,198.38,198.34,0.03864187]
[1739309926298,9.56455122,198.59,198.37,21.95565719]
[1739309926502,5.0384,198.49,198.38,5.041]
[1739309926895,1.5682,198.5,198.37,21.95565719]
[1739309927096,5.0385,198.48,198.37,26.99665719]
[1739309927396,0.03308299,198.44,198.41,0.03274603]
[1739309932006,43.91131438,198.42,198.22,176.93290058]
[1739309932206,21.95565719,198.33,198.22,176.93290058]
[1739309932406,5.0433,198.29,198.22,176.93290058]
[1739309933105,5.0433,198.29,198.27,54.84391975]
[1739309933308,0.0361616,198.3,198.27,0.03575292]
[1739309933497,21.95565719,198.29,198.19,2.9667]
[1739309933701,21.95565719,198.29,198.13,27.43123227]
[1739309933897,21.95565719,198.29,198.14,1.4613]
[1739309934106,5.0449,198.23,198.15,5.0468]
[1739309934307,21.95565719,198.24,198.14,1.4613]
[1739309934708,0.03255008,198.21,198.17,0.0343562]
[1739309936604,0.03255008,198.21,198.19,5.0457]
[1739309937309,0.03255008,198.21,198.17,0.0343562]
[1739309939912,21.98820727,198.21,198.17,0.0343562]
[1739309940514,0.03255008,198.21,198.17,0.0343562]
[1739309942118,21.98820727,198.21,198.17,0.0343562]
[1739309942818,5.0458,198.2,198.17,0.0343562]
[1739309943013,21.98820727,198.21,198.17,0.0343562]
[1739309944018,27.03360727,198.21,198.17,0.0343562]
[1739309947320,21.98820727,198.21,198.17,0.0343562]
[1739309947524,5.0457,198.2,198.17,0.0343562]
[1739309947820,21.98820727,198.21,198.17,0.0343562]
[1739309948322,21.98820727,198.21,198.18,5.0459]
[1739309948518,21.98820727,198.21,198.17,0.0343562]
[1739309948820,0.03255008,198.21,198.17,0.0343562]
[1739309950118,0.03255008,198.21,198.19,5.0456]
[1739309950923,0.03255008,198.21,198.17,0.0343562]
[1739309951313,5.0461,198.19,198.17,0.0343562]
[1739309952326,27.03370727,198.21,198.17,0.0343562]
[1739309952824,0.03255008,198.21,198.17,0.0343562]
[1739309953017,0.03255008,198.21,198.2,5.0456]
[1739309953419,0.03255008,198.21,198.17,0.0343562]
[1739309954724,21.98820727,198.21,198.17,0.0343562]
[1739309955126,5.0458,198.2,198.17,5.0806562]
[1739309955422,5.0458,198.2,198.17,0.0343562]
[1739309955624,5.0457,198.2,198.17,0.0343562]
[1739309956025,21.98820727,198.21,198.17,0.0343562]
[1739309956226,21.98820727,198.21,198.18,5.0459]
[1739309956618,0.03255008,198.21,198.17,0.0343562]
[1739309956824,0.03255008,198.21,198.19,5.0458]
[1739309957525,5.0457,198.2,198.17,5.0807562]
[1739309958228,5.07795008,198.21,198.18,5.0461]
[1739309959329,5.07795008,198.21,198.17,0.0343562]
[1739309959526,5.07795008,198.21,198.19,5.0459]
[1739309960831,0.03255008,198.21,198.17,0.0343562]
[1739309961030,0.03255008,198.21,198.2,5.0456]
[1739309961827,5.0434,198.29,198.18,3.0903]
[1739309963131,1.4742,198.31,198.25,5.0441]
[1739309963324,5.0436,198.28,198.25,5.0441]
[1739309963525,5.0436,198.28,198.26,0.03542078]
[1739309963934,5.0434,198.29,198.26,0.03542078]
[1739309964734,5.0438,198.27,198.26,0.03542078]
[1739309966531,21.95565719,198.29,198.18,3.0903]
[1739309966726,21.95565719,198.25,198.12,1.4629]
[1739309966932,21.95565719,198.25,198.13,1.5225]
[1739309967139,21.95565719,198.28,198.13,3.0272]
[1739309967534,5.0441,198.27,198.23,5.0448]
[1739309967741,2.791e-05,198.22,198.19,0.03815314]
[1739309968038,23.42985719,198.31,198.16,21.95565719]
[1739309968244,28.47275719,198.31,198.28,5.0436]
[1739309968444,21.95565719,198.31,198.16,21.95565719]
[1739309968839,21.95565719,198.31,198.22,0.03816226]
[1739309969040,5.233e-05,198.25,198.22,0.03816226]
[1739309969347,21.95565719,198.37,198.22,0.03816226]
[1739309969746,21.95565719,198.37,198.19,21.95565719]
[1739309969950,5.0419,198.35,198.32,5.0426]
[1739309970150,5.0419,198.35,198.19,21.95565719]
[1739309970350,5.07778762,198.35,198.32,0.03175987]
[1739309970649,21.95565719,198.34,198.3,5.0429]
[1739309970846,21.95565719,198.34,198.32,0.03824638]
[1739309971144,21.95565719,198.34,198.18,27.43123227]
[1739309971350,21.95565719,198.34,198.31,0.03335292]
[1739309971646,21.98815186,198.34,198.31,0.03189961]
[1739309972449,21.98815186,198.34,198.2,6.87816971]
[1739309972651,21.95565719,198.31,198.2,6.87816971]
[1739309973054,21.95565719,198.34,198.21,1.4669]
[1739309973252,21.95565719,198.37,198.22,1.49]
[1739309973654,0.03421316,198.31,198.3,5.0429]
[1739309973845,5.0418,198.36,198.28,0.03309661]
[1739309974153,0.0328234,198.32,198.28,0.03309661]
[1739309974555,21.95565719,198.43,198.36,5.0414]
[1739309974753,5.0407,198.4,198.36,5.0414]
[1739309975053,21.95565719,198.43,198.25,21.95565719]
[1739309975256,21.95565719,198.43,198.38,5.041]
[1739309975649,21.95565719,198.43,198.27,92.75777794]
[1739309975847,1.5711,198.45,198.28,21.95565719]
[1739309976047,12.27185719,198.46,198.32,0.03280514]
[1739309976256,139.83635764,198.55,198.53,5.0371]
[1739309976451,139.83635764,198.55,198.45,21.95565719]
[1739309977255,0.03418335,198.52,198.48,0.03532136]
[1739309977554,5.0352,198.61,198.51,5.0377]
[1739309977757,0.0378802,198.52,198.51,5.0377]
[1739309977952,5.0352,198.61,198.51,5.0377]
[1739309978155,0.03705787,198.53,198.51,5.0377]
[1739309978458,21.95565719,198.63,198.48,21.95565719]
[1739309978758,0.03724924,198.54,198.5,0.03681481]
[1739309979153,0.03724924,198.54,198.48,21.95565719]
[1739309979154,21.95565719,198.63,198.54,5.0368]
[1739309979459,0.03217943,198.6,198.54,5.0368]
[1739309979661,0.03217943,198.6,198.57,0.03191787]
[1739309979957,21.95565719,198.63,198.48,21.95565719]
[1739309980154,0.03462154,198.6,198.57,0.03251117]
[1739309980750,0.03462154,198.6,198.58,5.0359]
[1739309980956,0.03462154,198.6,198.57,0.03251117]
[1739309981256,0.03462154,198.6,198.48,21.95565719]
[1739309981455,1.521,198.64,198.48,21.95565719]
[1739309981657,21.95565719,198.62,198.45,21.95565719]
[1739309982456,0.03639069,198.55,198.52,0.03408213]
[1739309982657,21.95565719,198.62,198.52,0.03408213]
[1739309982858,0.03679426,198.55,198.42,1.2007]
[1739309983060,21.95565719,198.63,198.42,1.2007]
[1739309983260,5.0357,198.59,198.48,5.0385]
[1739309983456,3.0947,198.62,198.42,1.2007]
[1739309983658,3.0947,198.62,198.47,21.95565719]
[1739309983960,5.0361,198.58,198.5,5.0379]
[1739309984159,0.03692369,198.56,198.53,0.03499575]
[1739309984559,0.03692369,198.56,198.42,1.2007]
[1739309984760,21.95565719,198.59,198.42,1.2007]
[1739309984961,5.037,198.55,198.42,1.2007]
[1739309985161,21.95565719,198.59,198.42,1.2007]
[1739309985366,21.95565719,198.59,198.41,21.95565719]
[1739309985662,0.03768224,198.52,198.48,0.03429403]
[1739309987462,0.03768224,198.52,198.5,5.0378]
[1739309987757,0.03768224,198.52,198.48,0.03429403]
[1739309987962,0.03768224,198.52,198.49,5.038]
[1739309988162,15.16,198.7,198.51,21.95565719]
[1739309988363,3.1728,198.67,198.51,21.95565719]
[1739309988560,5.0352,198.62,198.55,5.0365]
[1739309989064,5.0354,198.61,198.51,21.95565719]
[1739309989260,0.0329449,198.6,198.57,0.03691872]
[1739309990958,5.036,198.58,198.52,5.0375]
[1739309991159,19.9089,198.68,198.47,21.95565719]
[1739309991365,21.95565719,198.64,198.47,21.95565719]
[1739309991666,5.0362,198.58,198.53,5.037]
[1739309991956,21.95565719,198.64,198.53,5.037]
[1739309992162,5.0362,198.58,198.57,0.0366884]
[1739309993065,0.03524175,198.6,198.57,0.0366884]
[1739309993660,0.03524175,198.6,198.47,21.95565719]
[1739309993863,0.92551909,198.67,198.47,21.95565719]
[1739309994059,21.95565719,198.62,198.47,21.95565719]
[1739309994260,5.0363,198.57,198.47,21.95565719]
[1739309994666,21.95565719,198.62,198.47,21.95565719]
[1739309994667,5.0366,198.56,198.51,5.0377]
[1739309994870,0.03230358,198.54,198.51,5.0377]
[1739309995968,0.03230358,198.54,198.5,0.03414302]
[1739309996163,3.07820358,198.54,198.5,0.03414302]
[1739309996368,5.0377,198.51,198.5,0.03414302]
[1739309997767,3.07820358,198.54,198.5,0.03414302]
[1739309997972,5.0374,198.53,198.5,0.03414302]
[1739309998571,0.03230358,198.54,198.5,0.03414302]
[1739309999371,0.03230358,198.54,198.51,5.0377]
[1739309999571,0.03230358,198.54,198.5,0.03414302]
[1739309999970,0.03230358,198.54,198.52,5.0374]
[1739310000168,0.03230358,198.54,198.5,0.03414302]
[1739310000571,5.06930358,198.54,198.5,5.07194302]
[1739310000869,0.03230358,198.54,198.5,5.07194302]
[1739310001064,0.03230358,198.54,198.5,0.03414302]
[1739310002271,5.0375,198.52,198.5,0.03414302]
[1739310002574,0.03230358,198.54,198.38,45.93491352]
[1739310002769,2.9823,198.53,198.38,45.93491352]
[1739310002974,2.9823,198.53,198.41,5.0401]
[1739310003375,5.0391,198.46,198.4,5.0404]
[1739310003573,5.0391,198.46,198.37,21.95565719]
[1739310003775,0.03807867,198.45,198.41,0.03459791]
[1739310004577,0.03807867,198.45,198.42,5.0398]
[1739310005275,0.03807867,198.45,198.43,5.0397]
[1739310005775,0.03807867,198.45,198.42,5.04]
[1739310007576,5.07737867,198.45,198.42,5.04]
[1739310008475,5.0398,198.43,198.41,0.03459791]
[1739310008675,0.03807867,198.45,198.41,0.03459791]
[1739310009970,0.03807867,198.45,198.35,27.43123227]
[1739310010467,0.03807867,198.45,198.35,32.47303227]
[1739310010977,0.03807867,198.45,198.35,27.43123227]
[1739310011176,0.03807867,198.45,198.38,0.03399121]
[1739310011377,21.99373586,198.45,198.35,27.43123227]
[1739310011675,5.0413,198.37,198.35,27.43123227]
[1739310011871,3.0615,198.44,198.35,27.43123227]
[1739310012471,0.03808575,198.41,198.38,0.03592605]
[1739310012666,0.03808575,198.41,198.35,27.43123227]
[1739310012667,0.03808575,198.41,198.32,11.92076971]
[1739310013574,5.041,198.39,198.33,5.0422]
[1739310013769,0.03808575,198.41,198.35,0.03537432]
[1739310014279,5.0415,198.36,198.35,0.03537432]
[1739310014479,5.0415,198.36,198.32,11.92066971]
[1739310014876,21.95565719,198.42,198.33,5.0423]
[1739310015579,0.03684442,198.39,198.36,0.02425984]
[1739310015774,0.03684442,198.39,198.3,5.0431]
[1739310015981,21.95565719,198.42,198.3,5.0431]
[1739310016184,21.95565719,198.39,198.27,92.75777794]
[1739310016676,5.0428,198.32,198.28,5.0435]
[1739310017277,5.07403535,198.35,198.31,5.0428]
[1739310017581,21.95565719,198.39,198.31,5.0428]
[1739310017881,21.95565719,198.39,198.17,46.28972417]
[1739310017882,0.03192023,198.35,198.22,28.8338269]
[1739310018082,5.0423,198.34,198.22,28.8338269]
[1739310018381,0.03655507,198.3,198.22,28.8338269]
[1739310018578,0.03655507,198.3,198.29,5.0431]
[1739310021482,5.507e-05,198.3,198.29,5.0431]
[1739310021677,13.72556317,198.48,198.39,5.0406]
[1739310021872,13.72556317,198.48,198.29,27.45112634]
[1739310021873,15.32996317,198.51,198.37,13.72556317]
[1739310022076,15.32996317,198.51,198.4,13.72556317]
[1739310022277,5.0383,198.49,198.44,5.0395]
[1739310022472,3.0639,198.5,198.4,13.72556317]
[1739310022978,0.03373155,198.47,198.43,5.07462046]
[1739310023477,0.03373155,198.47,198.44,5.0395]
[1739310024079,0.03373155,198.47,198.43,5.07462046]
[1739310024281,5.07253155,198.47,198.43,5.07462046]
[1739310024580,0.03373155,198.47,198.43,5.07462046]
[1739310025078,0.03373155,198.47,198.44,5.0393]
[1739310025981,0.03373155,198.47,198.43,0.03492046]
[1739310026182,0.03373155,198.47,198.46,5.039]
[1739310027683,0.03373155,198.47,198.45,5.0392]
[1739310028086,0.03373155,198.47,198.43,0.03492046]
[1739310028787,0.03373155,198.47,198.46,5.039]
[1739310031587,21.93680599,198.64,198.43,0.03492046]
[1739310031786,21.93680599,198.64,198.48,21.93680599]
[1739310032684,5.0358,198.59,198.54,5.037]
[1739310032886,0.03181719,198.58,198.54,0.0357316]
[1739310033590,0.03181719,198.58,198.57,5.0362]
[1739310034480,0.03181719,198.58,198.55,5.0365]
[1739310034885,0.03181719,198.58,198.54,0.0357316]
[1739310036490,0.03181719,198.58,198.55,5.0367]
[1739310037289,0.03181719,198.58,198.54,0.0357316]
[1739310038590,5.06791719,198.58,198.54,5.0726316]
[1739310038989,0.03181719,198.58,198.54,0.0357316]
[1739310039186,5.06791719,198.58,198.54,5.0726316]
[1739310040495,5.0365,198.56,198.54,0.0357316]
[1739310041190,0.03181719,198.58,198.54,0.0357316]
[1739310041390,5.06801719,198.58,198.54,0.0357316]
[1739310041892,5.0363,198.57,198.54,0.0357316]
[1739310042593,5.0365,198.56,198.54,0.0357316]
[1739310042788,0.03181719,198.58,198.54,0.0357316]
[1739310043292,5.0363,198.57,198.54,0.0357316]
[1739310043790,0.03181719,198.58,198.54,0.0357316]
[1739310044091,3.2005,198.57,198.54,0.0357316]
[1739310045387,0.03181719,198.58,198.54,0.0357316]
[1739310046392,5.0363,198.57,198.54,0.0357316]
[1739310048298,0.03181719,198.58,198.54,0.0357316]
[1739310048497,5.0367,198.56,198.54,0.0357316]
[1739310049798,5.0367,198.55,198.54,0.0357316]
[1739310050591,0.03181719,198.58,198.54,0.0357316]
[1739310051197,5.0363,198.57,198.54,0.0357316]
[1739310051398,0.03181719,198.58,198.54,0.0357316]
[1739310053201,5.06781719,198.58,198.54,5.0727316]
[1739310053906,0.03181719,198.58,198.54,0.0357316]
[1739310054407,5.0363,198.57,198.54,0.0357316]
[1739310055110,5.06781719,198.58,198.54,5.0727316]
[1739310055305,0.03181719,198.58,198.54,5.0727316]
[1739310055504,5.0362,198.57,198.54,5.0727316]
[1739310055707,0.03181719,198.58,198.54,0.0357316]
[1739310056009,5.0367,198.55,198.54,0.0357316]
[1739310056510,13.73058841,198.58,198.46,13.69877122]
[1739310056809,13.69877122,198.58,198.49,5.038]
[1739310057207,13.69877122,198.58,198.43,13.69877122]
[1739310057410,13.69877122,198.58,198.5,5.0379]
[1739310057610,13.69877122,198.58,198.52,0.03455502]
[1739310057806,0.03228621,198.56,198.52,0.03455502]
[1739310058308,5.0371,198.54,198.52,0.03455502]
[1739310058710,5.0372,198.53,198.52,0.03455502]
[1739310061308,13.69877122,198.55,198.42,6.87816971]
[1739310061509,13.69877122,198.52,198.42,6.87816971]
[1739310061908,13.69877122,198.52,198.45,5.0391]
[1739310062312,13.69877122,198.52,198.42,6.87816971]
[1739310062512,0.03855602,198.5,198.42,6.87816971]
[1739310062710,13.69877122,198.49,198.42,6.87816971]
[1739310062912,15.24207122,198.49,198.42,6.87816971]
[1739310063106,13.69877122,198.46,198.39,11.91886971]
[1739310063610,0.03533718,198.44,198.39,6.87816971]
[1739310064218,0.03533718,198.44,198.43,18.73857122]
[1739310064512,15.21677122,198.55,198.43,13.69877122]
[1739310065711,0.03277472,198.51,198.47,0.03283462]
[1739310066711,5.0382,198.5,198.47,0.03283462]
[1739310067515,5.07057472,198.51,198.47,5.07153462]
[1739310068119,5.07057472,198.51,198.47,0.03283462]
[1739310068414,5.0382,198.5,198.47,0.03283462]
[1739310069915,13.69877122,198.49,198.37,41.13000349]
[1739310070515,13.69877122,198.49,198.37,27.43123227]
[1739310070811,1.5607,198.54,198.38,6.87816971]
[1739310070812,13.69877122,198.46,198.38,6.87816971]
[1739310071014,13.69877122,198.42,198.38,6.87816971]
[1739310071414,5.0406,198.4,198.38,6.87816971]
[1739310072816,5.0406,198.4,198.36,54.80816683]
[1739310073015,5.0406,198.4,198.35,5.0417]
[1739310073513,0.03481231,198.41,198.3,13.69877122]
[1739310073715,13.69877122,198.42,198.3,13.69877122]
[1739310073716,1.5291,198.45,198.36,13.69877122]
[1739310073918,0.03444918,198.37,198.36,13.69877122]
[1739310074117,1.5291,198.45,198.36,13.69877122]
[1739310074516,0.03681803,198.42,198.36,13.69877122]
[1739310074717,0.03681803,198.42,198.4,5.0404]
[1739310074915,0.03681803,198.42,198.33,13.69877122]
[1739310075110,15.22787122,198.45,198.33,13.69877122]
[1739310075316,0.03847049,198.39,198.33,13.69877122]
[1739310076022,1.5689,198.47,198.37,13.69877122]
[1739310076518,5.0382,198.5,198.46,5.039]
[1739310077016,1.4971,198.53,198.43,13.69877122]
[1739310077322,0.03785595,198.5,198.46,0.03838952]
[1739310077916,0.03785595,198.5,198.47,5.0387]
[1739310078218,0.03785595,198.5,198.46,0.03838952]
[1739310079523,5.0388,198.47,198.46,0.03838952]
[1739310081326,18.73747122,198.48,198.46,0.03838952]
[1739310081624,23.46914315,198.5,198.35,0.1058]
[1739310081814,5.0396,198.44,198.38,5.0408]
[1739310082017,21.9459872,198.47,198.31,123.48104954]
[1739310082421,5.04,198.43,198.39,5.0407]
[1739310082621,21.9459872,198.47,198.31,123.48104954]
[1739310082822,0.0369171,198.43,198.31,123.48104954]
[1739310083226,0.0369171,198.43,198.41,5.0401]
[1739310084925,0.0369171,198.43,198.4,5.0405]
[1739310085621,0.0369171,198.43,198.32,0.2054]
[1739310085818,0.0369171,198.43,198.39,5.0408]
[1739310088020,0.0369171,198.43,198.32,0.2054]
[1739310088528,0.0369171,198.43,198.4,5.0403]
[1739310091725,5.0767171,198.43,198.4,5.0403]
[1739310092530,0.0369171,198.43,198.41,5.0403]
[1739310092726,0.0369171,198.43,198.32,0.2054]
[1739310093028,5.0767171,198.43,198.4,5.0405]
[1739310094527,5.0767171,198.43,198.41,5.0401]
[1739310094528,0.0369171,198.43,198.41,5.0401]
[1739310095021,0.0369171,198.43,198.32,0.2054]
[1739310095332,5.0767171,198.43,198.32,0.2054]
[1739310095830,5.0406,198.4,198.32,0.2054]
[1739310096031,21.9459872,198.47,198.32,0.2054]
[1739310096329,0.03506885,198.38,198.31,6.87816971]
[1739310096929,0.03506885,198.38,198.35,5.0416]
[1739310098025,0.03506885,198.38,198.36,5.0415]
[1739310098532,0.03506885,198.38,198.32,5.0425]
[1739310098736,0.03506885,198.38,198.3,92.84637623]
[1739310100029,0.03506885,198.38,198.35,5.0417]
[1739310100337,5.07606885,198.38,198.35,5.0417]
[1739310100528,0.03506885,198.38,198.3,92.84637623]
[1739310100931,0.03506885,198.38,198.32,5.0425]
[1739310101129,0.03506885,198.38,198.3,92.84637623]
[1739310102144,0.03506885,198.38,198.36,5.0413]
[1739310102335,0.03506885,198.38,198.3,92.84637623]
[1739310103541,0.03506885,198.38,198.37,5.0413]
[1739310109541,6.885e-05,198.38,198.37,5.0413]
[1739310116248,6.885e-05,198.38,198.36,0.03519157]
[1739310117451,5.04136885,198.38,198.36,0.03519157]
[1739310117651,6.885e-05,198.38,198.36,5.07659157]
[1739310119452,6.885e-05,198.38,198.37,5.0413]
[1739310119955,6.885e-05,198.38,198.36,0.03519157]
[1739310120150,6.885e-05,198.38,198.37,5.0413]
[1739310120451,6.885e-05,198.38,198.36,0.03519157]
[1739310120651,6.885e-05,198.38,198.36,5.07669157]
[1739310122155,6.885e-05,198.38,198.37,5.0413]
[1739310124556,6.885e-05,198.38,198.37,13.82309075]
[1739310128562,6.885e-05,198.38,198.36,0.03519157]
[1739310128764,8.78179075,198.37,198.36,0.03519157]
[1739310129563,6.885e-05,198.38,198.36,0.03519157]
[1739310129862,5.0413,198.37,198.36,0.03519157]
[1739310131065,6.885e-05,198.38,198.36,0.03519157]
[1739310131959,5.0413,198.37,198.36,0.03519157]
[1739310133069,6.885e-05,198.38,198.36,0.03519157]
[1739310133669,5.0413,198.37,198.36,0.03519157]
[1739310134368,5.04116885,198.38,198.36,0.03519157]
[1739310134563,6.885e-05,198.38,198.36,0.03519157]
[1739310135769,5.0413,198.37,198.36,0.03519157]
[1739310136160,5.0421,198.34,198.31,92.74057623]
[1739310136367,13.72727576,198.37,198.31,92.74057623]
[1739310136975,13.72727576,198.34,198.28,6.87816971]
[1739310137573,6.858e-05,198.33,198.32,5.0426]
[1739310137773,4.5414,198.39,198.3,13.72727576]
[1739310138171,4.5414,198.39,198.38,5.041]
[1739310138376,3.0561,198.39,198.38,5.041]
[1739310139476,0.03324743,198.4,198.39,5.0408]
[1739310147778,0.03324743,198.4,198.37,0.0345989]
[1739310148174,0.03324743,198.4,198.39,5.0408]
[1739310155489,5.07374743,198.4,198.37,0.0345989]
[1739310155786,8.78424954,198.38,198.37,0.0345989]
[1739310156989,0.03324743,198.4,198.37,0.0345989]
[1739310157190,0.03324743,198.4,198.39,5.0408]